lending/lending_fUSD_20241211
["ID","MTS","AMOUNT","RATE_DAILY","PERIOD"]
[345012428,1733932232485,-221.81949237,9.89e-05,2]
[345012430,1733932232494,-150.00000001,9.89e-05,2]
[345012432,1733932232505,-173.21318403,9.89e-05,2]
[345012434,1733932232514,-147.38095266,9.89e-05,2]
[345012436,1733932232526,-2.61904734,9.89e-05,2]
[345012438,1733932232535,-9704.43575412,9.897e-05,2]
[345012440,1733932232545,-303.65925186,9.898e-05,2]
[345012442,1733932232554,-500.0,9.898e-05,2]
[345012444,1733932232563,-331.44012911,9.898e-05,2]
[345012446,1733932232572,-365.25932048,9.898e-05,2]
[345012448,1733932232581,-187.98219335,9.898e-05,2]
[345012450,1733932232589,-500.0,9.898e-05,2]
[345012452,1733932232598,-500.0,9.898e-05,2]
[345012453,1733932232608,-500.0,9.898e-05,2]
[345012455,1733932232617,-500.0,9.898e-05,2]
[345012457,1733932232627,-500.0,9.898e-05,2]
[345012459,1733932232636,-500.0,9.898e-05,2]
[345012461,1733932232646,-500.0,9.898e-05,2]
[345012464,1733932232655,-500.0,9.898e-05,2]
[345012466,1733932232664,-500.0,9.898e-05,2]
[345012468,1733932232674,-500.0,9.898e-05,2]
[345012470,1733932232683,-500.0,9.898e-05,2]
[345012471,1733932232692,-305.10430374,9.898e-05,2]
[345012474,1733932232704,-194.89569626,9.898e-05,2]
[345012476,1733932232716,-500.0,9.898e-05,2]
[345012478,1733932232725,-472.30932493,9.898e-05,2]
[345012480,1733932232735,-500.0,9.898e-05,2]
[345012482,1733932232744,-500.0,9.898e-05,2]
[345012484,1733932232755,-500.0,9.898e-05,2]
[345012486,1733932232764,-500.0,9.898e-05,2]
[345012488,1733932232773,-399.9938691,9.898e-05,2]
[345012490,1733932232782,-500.0,9.898e-05,2]
[345012492,1733932232797,-500.0,9.898e-05,2]
[345012494,1733932232806,-500.0,9.898e-05,2]
[345012496,1733932232815,-856.55,9.898e-05,2]
[345012498,1733932232825,-915.58128203,9.898e-05,2]
[345012500,1733932232835,-1030.28721595,9.898e-05,3]
[345012502,1733932232844,-464.12496438,9.898e-05,2]
[345012504,1733932232854,-637.31696008,9.898e-05,2]
[345012506,1733932232865,-500.0,9.898e-05,2]
[345012508,1733932232874,-637.17197238,9.898e-05,2]
[345012510,1733932232884,-569.96539058,9.898e-05,2]
[345012512,1733932232893,-500.0,9.898e-05,2]
[345012514,1733932232902,-500.0,9.898e-05,2]
[345012516,1733932232910,-500.0,9.898e-05,2]
[345012518,1733932232919,-392.84010111,9.898e-05,2]
[345012520,1733932232928,-500.0,9.898e-05,2]
[345012522,1733932232937,-500.0,9.898e-05,2]
[345012524,1733932232946,-500.0,9.898e-05,2]
[345012526,1733932232954,-500.0,9.898e-05,2]
[345012528,1733932232963,-500.0,9.898e-05,2]
[345012529,1733932232972,-500.0,9.898e-05,2]
[345012531,1733932232981,-500.0,9.898e-05,2]
[345012533,1733932232990,-500.0,9.898e-05,2]
[345012536,1733932233001,-500.0,9.898e-05,2]
[345012537,1733932233013,-584.26619727,9.898e-05,2]
[345012539,1733932233022,-500.0,9.898e-05,2]
[345012541,1733932233032,-500.0,9.898e-05,2]
[345012543,1733932233040,-517.71254758,9.898e-05,2]
[345012545,1733932233050,-500.0,9.898e-05,2]
[345012547,1733932233059,-170.10825435,9.898e-05,2]
[345012550,1733932233071,-329.89174565,9.898e-05,2]
[345012552,1733932233081,-106.10825435,9.898e-05,2]
[345012555,1733932233098,-393.89174565,9.898e-05,2]
[345012557,1733932233107,-43.45688874,9.898e-05,2]
[345012564,1733932233166,-456.54311126,9.898e-05,2]
[345012566,1733932233176,-500.0,9.898e-05,2]
[345012568,1733932233185,-1040.34168018,9.898e-05,3]
[345012570,1733932233195,-813.27283777,9.898e-05,2]
[345012572,1733932233204,-113093.34294233,9.899e-05,2]
[345012574,1733932233216,-108686.46199854,9.899e-05,2]
[345012576,1733932233227,-166883.8012591,9.899e-05,2]
[345012579,1733932233238,-54900.00017201,9.899e-05,2]
[345012581,1733932233249,-171677.4988,9.899e-05,2]
[345013023,1733932238129,-310.4013,9.799e-05,2]
[345013024,1733932238140,-9104.11495507,9.899e-05,2]
[345013025,1733932238151,-39994.19865,9.899e-05,2]
[345013026,1733932238163,-487.8,9.899e-05,2]
[345013027,1733932238175,-2204.07137624,9.899e-05,2]
[345013028,1733932238186,-3046.08,9.899e-05,2]
[345013029,1733932238198,-9593.80859892,9.899e-05,2]
[345013030,1733932238210,-1944.1620263,9.899e-05,2]
[345013031,1733932238240,-10739.017255,9.899e-05,2]
[345013032,1733932238500,-699.84915,9.899e-05,2]
[345013033,1733932238518,-1177.65754989,9.899e-05,2]
[345013034,1733932238530,-5496.8071181,9.899e-05,2]
[345013039,1733932238768,-409141.86804986,9.899e-05,2]
[345013040,1733932238810,23900.0,9.585e-05,2]
[345013041,1733932238823,-5013.85872746,9.899e-05,2]
[345013044,1733932239998,-57060.67270685,9.899e-05,2]
[345013045,1733932240014,-823.431,9.899e-05,2]
[345013046,1733932240026,-490.65000002,9.899e-05,2]
[345013047,1733932240039,-509.59999992,9.899e-05,2]
[345013048,1733932240051,-464.66313328,9.899e-05,2]
[345013049,1733932240063,-440.32,9.899e-05,2]
[345013050,1733932240084,-20686.0,9.899e-05,2]
[345013051,1733932240095,-993.72799997,9.899e-05,2]
[345013052,1733932240107,-1193.49997,9.899e-05,2]
[345013053,1733932240119,-9030.6,9.899e-05,2]
[345013054,1733932240131,-246350.668,9.899e-05,2]
[345013055,1733932240143,-831.8376,9.899e-05,2]
[345013056,1733932240198,-263.90452531,9.899e-05,2]
[345013057,1733932240349,-2359.6752399,9.899e-05,2]
[345013058,1733932240382,-549.95,9.899e-05,2]
[345013061,1733932240494,250.0,9.585e-05,2]
[345013085,1733932243215,-9405.53368041,9.899e-05,2]
[345013086,1733932243227,-306.88380085,9.899e-05,2]
[345013087,1733932243238,-4163.19985,9.899e-05,2]
[345013088,1733932243278,-14198.1945,9.899e-05,2]
[345013089,1733932243289,-7580.79999998,9.899e-05,2]
[345013090,1733932243453,-3982058.97936469,9.899e-05,2]
[345013091,1733932243465,-6081.57,9.899e-05,2]
[345013092,1733932243474,-509.49,9.899e-05,2]
[345013093,1733932243484,-253.50468918,9.899e-05,2]
[345013094,1733932243493,-49408.7149,9.9e-05,2]
[345013095,1733932243502,-8034.0,9.9e-05,2]
[345013096,1733932243519,-4029.31,9.947e-05,2]
[345013097,1733932243530,-527.0,9.948e-05,2]
[345013098,1733932243539,-524.0,9.948e-05,2]
[345013099,1733932243549,-524.0,9.948e-05,2]
[345013100,1733932243561,-524.0,9.948e-05,2]
[345013101,1733932243570,-16436.0,9.998e-05,2]
[345013102,1733932243578,-8216.0,9.998e-05,2]
[345013103,1733932243587,-8216.0,9.998e-05,2]
[345013104,1733932243596,-8216.0,9.998e-05,2]
[345013105,1733932243607,-8216.0,9.998e-05,2]
[345013106,1733932243616,-182.98292377,0.0001,2]
[345013107,1733932243625,-182.98292377,0.0001,2]
[345013108,1733932243635,-856.55,0.00010035,2]
[345013109,1733932243644,-601.4,0.00010096,2]
[345013110,1733932243653,-250.0,0.00010096,2]
[345013111,1733932243663,-435.92,0.00010137,2]
[345013112,1733932243672,-435.92,0.00010137,2]
[345013113,1733932243681,-856.55,0.00010172,2]
[345013114,1733932243690,-832.43,0.00010228,2]
[345013115,1733932243699,-856.55,0.00010309,2]
[345013116,1733932243709,-377.89,0.00010341,2]
[345013117,1733932243718,-300.79,0.00010378,2]
[345013118,1733932243727,-500.0,0.00010421,2]
[345013119,1733932243737,-1000.0,0.00010421,2]
[345013120,1733932243746,-435.92,0.00010441,2]
[345013121,1733932243756,-435.92,0.00010441,2]
[345013122,1733932243766,-435.92,0.00010441,2]
[345013123,1733932243776,-856.55,0.00010446,2]
[345013124,1733932243786,-1505.05,0.00010456,2]
[345013125,1733932243797,-16515.45,0.00010475,2]
[345013126,1733932243806,-856.55,0.00010583,2]
[345013127,1733932243815,-832.43,0.00010593,2]
[345013129,1733932243824,-150.0,0.00010608,2]
[345013131,1733932243835,-856.55,0.0001072,2]
[345013133,1733932243844,-1000.0,0.00010726,2]
[345013135,1733932243854,-103858.87588421,0.00010758,2]
[345013137,1733932243863,-362.7575,0.000108,2]
[345013138,1733932243872,-255.0,0.00010819,2]
[345013139,1733932243882,-856.55,0.00010857,2]
[345013140,1733932243891,-160.99306004,0.00010858,2]
[345013141,1733932243902,-153.0,0.00010869,2]
[345013142,1733932243911,-153.0,0.00010869,2]
[345013143,1733932243920,-153.0,0.00010869,2]
[345013144,1733932243930,-153.0,0.00010869,2]
[345013145,1733932243939,-153.0,0.00010872,2]
[345013146,1733932243949,-160.99305999,0.00010876,2]
[345013147,1733932243958,-160.99305999,0.00010894,2]
[345013148,1733932243968,-104100.98343434,0.00010898,2]
[345013149,1733932243977,-1000.0,0.000109,2]
[345013150,1733932243986,-5309.84329448,0.000109,2]
[345013151,1733932243996,-160.99305999,0.00010911,2]
[345013152,1733932244005,-160.99305999,0.00010929,2]
[345013153,1733932244165,-302833.48740884,0.00010934,2]
[345013154,1733932244175,-160.99305999,0.00010947,2]
[345013155,1733932244184,-795.334,0.00010947,2]
[345013156,1733932244194,-1895.0,0.00010947,2]
[345013157,1733932244203,-1253.0,0.00010947,2]
[345013158,1733932244213,-817.0,0.00010947,2]
[345013159,1733932244222,-3763.0,0.00010947,2]
[345013160,1733932244232,-931.0,0.00010947,2]
[345013161,1733932244241,-3629.0,0.00010947,2]
[345013162,1733932244250,-535.0,0.00010947,2]
[345013163,1733932244260,-150.0,0.00010947,2]
[345013164,1733932244269,-3879.0,0.00010947,2]
[345013165,1733932244278,-390.181,0.00010947,2]
[345013166,1733932244288,-832.43,0.00010958,2]
[345013167,1733932244297,-500.0,0.00010958,2]
[345013168,1733932244306,-183.89224217,0.00010958,2]
[345013169,1733932244315,-161.97250315,0.00010958,2]
[345013170,1733932244325,-1371.25,0.00010958,2]
[345013171,1733932244334,-1371.25,0.00010958,2]
[345013172,1733932244344,-500.0,0.00010958,2]
[345013173,1733932244356,-500.0,0.00010958,2]
[345013174,1733932244365,-1642.86,0.00010958,2]
[345013175,1733932244374,-1642.86,0.00010958,2]
[345013176,1733932244384,-500.0,0.00010958,2]
[345013177,1733932244393,-500.0,0.00010958,2]
[345013178,1733932244403,-538.9,0.00010958,2]
[345013179,1733932244413,-538.9,0.00010958,2]
[345013180,1733932244422,-661.63,0.00010958,2]
[345013181,1733932244431,-661.63,0.00010958,2]
[345013182,1733932244440,-523.47,0.00010958,2]
[345013183,1733932244450,-523.47,0.00010958,2]
[345013184,1733932244459,-500.0,0.00010958,2]
[345013185,1733932244468,-500.0,0.00010958,2]
[345013186,1733932244477,-913.01,0.00010958,2]
[345013187,1733932244487,-913.01,0.00010958,2]
[345013188,1733932244496,-1728.21,0.00010958,2]
[345013189,1733932244505,-1728.21,0.00010958,2]
[345013190,1733932244514,-500.0,0.00010958,2]
[345013191,1733932244523,-500.0,0.00010958,2]
[345013192,1733932244533,-500.0,0.00010958,2]
[345013193,1733932244542,-500.0,0.00010958,2]
[345013194,1733932244551,-1406.76,0.00010958,2]
[345013195,1733932244560,-1406.76,0.00010958,2]
[345013196,1733932244569,-844.87,0.00010958,2]
[345013197,1733932244578,-844.87,0.00010958,2]
[345013198,1733932244588,-500.0,0.00010958,2]
[345013199,1733932244597,-500.0,0.00010958,2]
[345013200,1733932244606,-1330.39,0.00010958,2]
[345013201,1733932244616,-1330.39,0.00010958,2]
[345013202,1733932244625,-500.0,0.00010958,2]
[345013203,1733932244635,-500.0,0.00010958,2]
[345013204,1733932244644,-500.0,0.00010958,2]
[345013205,1733932244653,-500.0,0.00010958,2]
[345013206,1733932244663,-500.0,0.00010958,2]
[345013207,1733932244673,-500.0,0.00010958,2]
[345013208,1733932244682,-853.14,0.00010958,2]
[345013209,1733932244690,-853.14,0.00010958,2]
[345013210,1733932244698,-501.04991579,0.00010958,2]
[345013211,1733932244707,-500.0,0.00010958,2]
[345013212,1733932244716,-500.0,0.00010958,2]
[345013213,1733932244725,-500.0,0.00010958,2]
[345013214,1733932244735,-500.0,0.00010958,2]
[345013215,1733932244744,-500.0,0.00010958,2]
[345013216,1733932244753,-500.0,0.00010958,2]
[345013217,1733932244769,-500.0,0.00010958,2]
[345013218,1733932244779,-500.0,0.00010958,2]
[345013219,1733932244788,-500.0,0.00010958,2]
[345013220,1733932244800,-500.0,0.00010958,2]
[345013221,1733932244814,-500.0,0.00010958,2]
[345013222,1733932244824,-500.0,0.00010958,2]
[345013223,1733932244835,-500.0,0.00010958,2]
[345013224,1733932244844,-500.0,0.00010958,2]
[345013225,1733932244854,-527.74,0.00010958,2]
[345013226,1733932244865,-527.74,0.00010958,2]
[345013227,1733932244875,-500.0,0.00010958,2]
[345013228,1733932244884,-500.0,0.00010958,2]
[345013229,1733932244894,-500.0,0.00010958,2]
[345013230,1733932244904,-500.0,0.00010958,2]
[345013231,1733932244913,-500.0,0.00010958,2]
[345013232,1733932244923,-500.0,0.00010958,2]
[345013233,1733932244933,-500.0,0.00010958,2]
[345013234,1733932244942,-500.0,0.00010958,2]
[345013235,1733932244952,-500.0,0.00010958,2]
[345013236,1733932244962,-500.0,0.00010958,2]
[345013237,1733932244971,-500.0,0.00010958,2]
[345013238,1733932244980,-501.73372797,0.00010958,2]
[345013239,1733932244992,-277.79298319,0.00010958,2]
[345013240,1733932245002,-500.0,0.00010958,2]
[345013241,1733932245011,-500.0,0.00010958,2]
[345013242,1733932245021,-502.01768812,0.00010958,2]
[345013243,1733932245030,-500.0,0.00010958,2]
[345013244,1733932245040,-500.0,0.00010958,2]
[345013245,1733932245049,-500.0,0.00010958,2]
[345013246,1733932245058,-500.0,0.00010958,2]
[345013247,1733932245066,-500.0,0.00010958,2]
[345013248,1733932245076,-352.98851703,0.00010958,2]
[345013249,1733932245085,-509.93949368,0.00010958,2]
[345013250,1733932245095,-500.0,0.00010958,2]
[345013251,1733932245105,-500.0,0.00010958,2]
[345013252,1733932245114,-500.0,0.00010958,2]
[345013253,1733932245124,-500.0,0.00010958,2]
[345013254,1733932245133,-500.0,0.00010958,2]
[345013255,1733932245142,-500.0,0.00010958,2]
[345013256,1733932245152,-500.0,0.00010958,2]
[345013257,1733932245161,-500.0,0.00010958,2]
[345013258,1733932245171,-501.53929563,0.00010958,2]
[345013259,1733932245181,-500.0,0.00010958,2]
[345013260,1733932245190,-500.0,0.00010958,2]
[345013261,1733932245200,-500.0,0.00010958,2]
[345013262,1733932245209,-500.0,0.00010958,2]
[345013263,1733932245219,-500.0,0.00010958,2]
[345013264,1733932245228,-500.0,0.00010958,2]
[345013265,1733932245237,-500.0,0.00010958,2]
[345013266,1733932245247,-500.0,0.00010958,2]
[345013267,1733932245256,-500.0,0.00010958,2]
[345013268,1733932245265,-500.0,0.00010958,2]
[345013269,1733932245273,-423.30832554,0.00010958,2]
[345013270,1733932245283,-500.0,0.00010958,2]
[345013271,1733932245292,-500.0,0.00010958,2]
[345013272,1733932245301,-500.0,0.00010958,2]
[345013273,1733932245312,-500.0,0.00010958,2]
[345013274,1733932245321,-500.0,0.00010958,2]
[345013275,1733932245331,-500.0,0.00010958,2]
[345013276,1733932245340,-500.0,0.00010958,2]
[345013277,1733932245349,-500.0,0.00010958,2]
[345013278,1733932245359,-500.0,0.00010958,2]
[345013279,1733932245368,-500.0,0.00010958,2]
[345013280,1733932245377,-503.13448654,0.00010958,2]
[345013281,1733932245387,-500.0,0.00010958,2]
[345013282,1733932245396,-355.09377953,0.00010958,2]
[345013283,1733932245406,-500.0,0.00010958,2]
[345013284,1733932245416,-500.0,0.00010958,2]
[345013285,1733932245425,-645.54341649,0.00010958,2]
[345013286,1733932245434,-500.0,0.00010958,2]
[345013287,1733932245444,-500.0,0.00010958,2]
[345013288,1733932245453,-500.0,0.00010958,2]
[345013289,1733932245463,-501.58656335,0.00010958,2]
[345013290,1733932245472,-500.0,0.00010958,2]
[345013291,1733932245482,-500.0,0.00010958,2]
[345013292,1733932245492,-668.33,0.00010958,2]
[345013293,1733932245501,-668.33,0.00010958,2]
[345013294,1733932245510,-500.0,0.00010958,2]
[345013295,1733932245520,-500.0,0.00010958,2]
[345013296,1733932245529,-500.0,0.00010958,2]
[345013297,1733932245539,-500.0,0.00010958,2]
[345013298,1733932245549,-500.0,0.00010958,2]
[345013299,1733932245559,-500.0,0.00010958,2]
[345013300,1733932245568,-500.0,0.00010958,2]
[345013301,1733932245578,-500.0,0.00010958,2]
[345013302,1733932245587,-500.0,0.00010958,2]
[345013303,1733932245597,-500.0,0.00010958,2]
[345013304,1733932245606,-500.0,0.00010958,2]
[345013305,1733932245616,-295.64526115,0.00010958,2]
[345013306,1733932245626,-1843.19,0.00010958,2]
[345013307,1733932245635,-500.0,0.00010958,2]
[345013308,1733932245645,-500.0,0.00010958,2]
[345013309,1733932245654,-1843.19,0.00010958,2]
[345013311,1733932245664,-500.0,0.00010958,2]
[345013312,1733932245674,-500.0,0.00010958,2]
[345013313,1733932245683,-500.0,0.00010958,2]
[345013314,1733932245692,-500.0,0.00010958,2]
[345013315,1733932245701,-500.0,0.00010958,2]
[345013316,1733932245711,-502.73193815,0.00010958,2]
[345013317,1733932245720,-500.0,0.00010958,2]
[345013319,1733932245729,-500.0,0.00010958,2]
[345013320,1733932245739,-500.0,0.00010958,2]
[345013321,1733932245748,-783.19,0.00010958,2]
[345013322,1733932245756,-783.19,0.00010958,2]
[345013323,1733932245765,-501.51947312,0.00010958,2]
[345013324,1733932245774,-500.0,0.00010958,2]
[345013325,1733932245783,-501.48800764,0.00010958,2]
[345013326,1733932245797,-500.0,0.00010958,2]
[345013327,1733932245807,-500.0,0.00010958,2]
[345013328,1733932245816,-500.0,0.00010958,2]
[345013329,1733932245826,-502.74611911,0.00010958,2]
[345013330,1733932245837,-500.0,0.00010958,2]
[345013331,1733932245846,-500.0,0.00010958,2]
[345013332,1733932245855,-500.0,0.00010958,2]
[345013333,1733932245865,-500.0,0.00010958,2]
[345013334,1733932245874,-541.32046117,0.00010958,2]
[345013335,1733932245884,-500.0,0.00010958,2]
[345013336,1733932245894,-500.0,0.00010958,2]
[345013338,1733932245903,-500.0,0.00010958,2]
[345013339,1733932245913,-500.0,0.00010958,2]
[345013340,1733932245922,-500.0,0.00010958,2]
[345013341,1733932245932,-500.0,0.00010958,2]
[345013342,1733932245942,-500.0,0.00010958,2]
[345013343,1733932245951,-500.0,0.00010958,2]
[345013344,1733932245961,-500.0,0.00010958,2]
[345013345,1733932245970,-500.0,0.00010958,2]
[345013346,1733932245979,-504.35390833,0.00010958,2]
[345013347,1733932245989,-500.0,0.00010958,2]
[345013348,1733932245997,-500.0,0.00010958,2]
[345013349,1733932246006,-1366.47,0.00010958,2]
[345013350,1733932246015,-1366.47,0.00010958,2]
[345013351,1733932246024,-476.35370997,0.00010958,2]
[345013352,1733932246034,-500.0,0.00010958,2]
[345013353,1733932246043,-500.0,0.00010958,2]
[345013354,1733932246052,-500.0,0.00010958,2]
[345013355,1733932246061,-500.0,0.00010958,2]
[345013356,1733932246070,-500.0,0.00010958,2]
[345013357,1733932246079,-490.97140134,0.00010958,2]
[345013358,1733932246089,-500.0,0.00010958,2]
[345013359,1733932246099,-500.0,0.00010958,2]
[345013360,1733932246109,-500.0,0.00010958,2]
[345013361,1733932246119,-500.0,0.00010958,2]
[345013362,1733932246129,-500.0,0.00010958,2]
[345013363,1733932246139,-205.5563047,0.00010958,2]
[345013364,1733932246149,-502.78206777,0.00010958,2]
[345013365,1733932246159,-500.0,0.00010958,2]
[345013366,1733932246168,-500.0,0.00010958,2]
[345013367,1733932246176,-1061.92,0.00010958,2]
[345013368,1733932246186,-1061.92,0.00010958,2]
[345013369,1733932246195,-500.0,0.00010958,2]
[345013370,1733932246205,-547.81,0.00010958,2]
[345013371,1733932246215,-500.0,0.00010958,2]
[345013372,1733932246224,-414.10209436,0.00010958,2]
[345013373,1733932246233,-500.0,0.00010958,2]
[345013374,1733932246242,-500.0,0.00010958,2]
[345013375,1733932246251,-500.0,0.00010958,2]
[345013376,1733932246260,-500.0,0.00010958,2]
[345013377,1733932246269,-500.0,0.00010958,2]
[345013378,1733932246279,-500.0,0.00010958,2]
[345013379,1733932246288,-346.32526384,0.00010958,2]
[345013380,1733932246427,-500.80640039,0.00010958,2]
[345013381,1733932246437,-500.0,0.00010958,2]
[345013382,1733932246447,-500.0,0.00010958,2]
[345013384,1733932246456,-328.55,0.00010958,2]
[345013386,1733932246464,-500.0,0.00010958,2]
[345013388,1733932246473,-500.0,0.00010958,2]
[345013390,1733932246483,-500.0,0.00010958,2]
[345013392,1733932246493,-500.0,0.00010958,2]
[345013394,1733932246502,-500.0,0.00010958,2]
[345013395,1733932246511,-275.42301612,0.00010958,2]
[345013397,1733932246520,-620.52,0.00010958,2]
[345013398,1733932246529,-620.52,0.00010958,2]
[345013399,1733932246539,-2999.31,0.00010958,2]
[345013400,1733932246548,-2999.31,0.00010958,2]
[345013401,1733932246558,-2999.31,0.00010958,2]
[345013402,1733932246567,-2999.31,0.00010958,2]
[345013403,1733932246576,-2999.31,0.00010958,2]
[345013404,1733932246585,-2999.31,0.00010958,2]
[345013405,1733932246594,-2999.31,0.00010958,2]
[345013406,1733932246603,-500.0,0.00010958,2]
[345013407,1733932246612,-2999.31,0.00010958,2]
[345013408,1733932246622,-2999.31,0.00010958,2]
[345013410,1733932246631,-2999.31,0.00010958,2]
[345013411,1733932246639,-2999.31,0.00010958,2]
[345013412,1733932246648,-2999.31,0.00010958,2]
[345013413,1733932246657,-500.0,0.00010958,2]
[345013414,1733932246667,-2999.31,0.00010958,2]
[345013415,1733932246676,-2999.31,0.00010958,2]
[345013416,1733932246685,-500.0,0.00010958,2]
[345013417,1733932246694,-2999.31,0.00010958,2]
[345013418,1733932246704,-2999.31,0.00010958,2]
[345013419,1733932246713,-2999.31,0.00010958,2]
[345013420,1733932246724,-2999.31,0.00010958,2]
[345013421,1733932246733,-2999.31,0.00010958,2]
[345013422,1733932246743,-2999.31,0.00010958,2]
[345013423,1733932246752,-2999.31,0.00010958,2]
[345013424,1733932246762,-2999.31,0.00010958,2]
[345013425,1733932246771,-2999.31,0.00010958,2]
[345013426,1733932246780,-2999.34415121,0.00010958,2]
[345013427,1733932246790,-1466.68,0.00010958,2]
[345013428,1733932246803,-1466.68,0.00010958,2]
[345013429,1733932246813,-500.0,0.00010958,2]
[345013430,1733932246822,-500.0,0.00010958,2]
[345013431,1733932246831,-500.0,0.00010958,2]
[345013432,1733932246842,-500.0,0.00010958,2]
[345013433,1733932246851,-272.28,0.00010958,2]
[345013434,1733932246860,-216.41208855,0.00010958,2]
[345013435,1733932246871,-500.0,0.00010958,2]
[345013436,1733932246881,-500.0,0.00010958,2]
[345013437,1733932246890,-500.62413512,0.00010958,2]
[345013438,1733932246900,-494.10591502,0.00010958,2]
[345013439,1733932246909,-500.0,0.00010958,2]
[345013440,1733932246917,-501.35610294,0.00010958,2]
[345013441,1733932246926,-500.0,0.00010958,2]
[345013442,1733932246935,-500.0,0.00010958,2]
[345013443,1733932246945,-500.0,0.00010958,2]
[345013444,1733932246955,-500.0,0.00010958,2]
[345013445,1733932246964,-886.4,0.00010958,2]
[345013446,1733932246973,-886.4,0.00010958,2]
[345013447,1733932246984,-500.0,0.00010958,2]
[345013448,1733932246994,-536.42,0.00010958,2]
[345013449,1733932247003,-386.07,0.00010958,2]
[345013450,1733932247013,-882.88,0.00010958,2]
[345013451,1733932247022,-882.88,0.00010958,2]
[345013452,1733932247032,-500.0,0.00010958,2]
[345013453,1733932247042,-500.0,0.00010958,2]
[345013454,1733932247051,-500.0,0.00010958,2]
[345013455,1733932247061,-500.0,0.00010958,2]
[345013456,1733932247071,-380.28,0.00010958,2]
[345013457,1733932247080,-500.0,0.00010958,2]
[345013458,1733932247090,-500.0,0.00010958,2]
[345013459,1733932247099,-500.0,0.00010958,2]
[345013460,1733932247108,-5606.05,0.00010958,2]
[345013461,1733932247118,-5606.05,0.00010958,2]
[345013462,1733932247128,-500.0,0.00010958,2]
[345013463,1733932247138,-500.71763347,0.00010958,2]
[345013464,1733932247148,-790.82,0.00010958,2]
[345013465,1733932247157,-790.82,0.00010958,2]
[345013466,1733932247167,-500.0,0.00010958,2]
[345013467,1733932247177,-500.0,0.00010958,2]
[345013468,1733932247188,-500.0,0.00010958,2]
[345013469,1733932247198,-500.0,0.00010958,2]
[345013470,1733932247208,-276.48614981,0.00010958,2]
[345013471,1733932247218,-873.03,0.00010958,2]
[345013472,1733932247227,-500.0,0.00010958,2]
[345013473,1733932247237,-873.03,0.00010958,2]
[345013474,1733932247247,-500.0,0.00010958,2]
[345013475,1733932247256,-500.0,0.00010958,2]
[345013476,1733932247267,-500.0,0.00010958,2]
[345013477,1733932247277,-610.49,0.00010958,2]
[345013478,1733932247287,-610.49,0.00010958,2]
[345013479,1733932247297,-500.0,0.00010958,2]
[345013480,1733932247307,-4267.65,0.00010958,2]
[345013481,1733932247317,-4267.65,0.00010958,2]
[345013482,1733932247327,-500.0,0.00010958,2]
[345013483,1733932247336,-500.0,0.00010958,2]
[345013484,1733932247346,-500.0,0.00010958,2]
[345013485,1733932247356,-532.03898418,0.00010958,2]
[345013486,1733932247365,-593.63,0.00010958,2]
[345013487,1733932247375,-593.63,0.00010958,2]
[345013488,1733932247384,-593.63,0.00010958,2]
[345013489,1733932247395,-500.0,0.00010958,2]
[345013490,1733932247406,-593.63,0.00010958,2]
[345013491,1733932247417,-500.0,0.00010958,2]
[345013492,1733932247427,-593.63,0.00010958,2]
[345013493,1733932247438,-593.63,0.00010958,2]
[345013494,1733932247448,-593.63,0.00010958,2]
[345013495,1733932247458,-593.63,0.00010958,2]